bitfinex/quotes_BTCUSD_20250320
["timestamp","ask_amount","ask_price","bid_price","bid_amount"]
[1742430026109,0.25215627,87294.0,87293.0,0.004]
[1742430026539,0.25215627,87294.0,87286.0,0.0001698]
[1742430026540,0.183293,87292.0,87286.0,0.0001698]
[1742430026744,0.03631098,87291.0,87287.0,0.01411298]
[1742430026876,0.183299,87289.0,87287.0,0.01411298]
[1742430027079,0.04783261,87288.0,87287.0,0.01411298]
[1742430027284,0.03637661,87288.0,87287.0,0.01411298]
[1742430027876,0.05777417,87288.0,87287.0,0.01411298]
[1742430028079,0.06923017,87288.0,87287.0,0.01411298]
[1742430028281,0.06923017,87288.0,87287.0,0.001]
[1742430028482,0.194759,87287.0,87286.0,0.0001698]
[1742430028706,0.23123405,87287.0,87286.0,0.0001698]
[1742430029108,0.25263161,87287.0,87286.0,0.0001698]
[1742430029738,0.25263161,87287.0,87286.0,0.0021698]
[1742430029946,0.05787261,87287.0,87286.0,0.01647878]
[1742430030529,0.05787261,87287.0,87286.0,1.51847878]
[1742430030730,0.06932861,87287.0,87286.0,1.51847878]
[1742430030907,0.25263161,87287.0,87286.0,1.51847878]
[1742430031562,0.25263161,87287.0,87286.0,1.5041698]
[1742430032174,0.33533161,87287.0,87286.0,1.5041698]
[1742430032591,0.37104552,87287.0,87286.0,1.5041698]
[1742430033006,0.33533161,87287.0,87286.0,1.5041698]
[1742430033213,0.33533161,87287.0,87286.0,1.5021698]
[1742430033419,0.33533161,87287.0,87286.0,1.5001698]
[1742430033611,0.33833161,87287.0,87286.0,1.5001698]
[1742430035218,0.06087261,87287.0,87286.0,0.11974483]
[1742430035368,0.25563161,87287.0,87286.0,0.0001698]
[1742430035577,0.25563161,87287.0,87286.0,1.5001698]
[1742430036177,0.25363161,87287.0,87286.0,1.5001698]
[1742430036796,0.25363161,87287.0,87286.0,1.6834748]
[1742430036797,0.02239756,87287.0,87286.0,1.6834748]
[1742430037003,0.194745,87294.0,87286.0,1.6834748]
[1742430037203,0.03624536,87293.0,87287.0,0.11957503]
[1742430037403,0.03624536,87293.0,87287.0,0.30287603]
[1742430037840,0.03624536,87293.0,87287.0,0.11957503]
[1742430038251,0.03624536,87293.0,87287.0,0.30287603]
[1742430038448,0.03624536,87293.0,87287.0,0.11957503]
[1742430038647,0.03624536,87293.0,87288.0,0.06507588]
[1742430038847,0.03624536,87293.0,87289.0,0.194755]
[1742430039141,0.1836186,87299.0,87290.0,0.183295]
[1742430039353,0.03598289,87298.0,87290.0,0.18444047]
[1742430039546,0.03598289,87298.0,87291.0,0.04464412]
[1742430040438,0.03598289,87298.0,87293.0,0.18329]
[1742430040710,0.0003396,87299.0,87298.0,0.011455]
[1742430040914,0.0003396,87299.0,87298.0,0.05850028]
[1742430041093,0.0003396,87299.0,87298.0,0.16356387]
[1742430041272,0.0003396,87299.0,87298.0,1.97514392]
[1742430041493,0.0003396,87299.0,87298.0,1.96241859]
[1742430041854,0.0003396,87299.0,87298.0,1.95096359]
[1742430042058,0.0117936,87299.0,87298.0,1.95096359]
[1742430042258,0.0003396,87299.0,87298.0,1.59052274]
[1742430042459,0.1950716,87299.0,87298.0,1.64012]
[1742430042684,0.1950716,87299.0,87298.0,1.64612]
[1742430042883,0.0003396,87299.0,87298.0,1.64612]
[1742430043688,0.0003396,87299.0,87298.0,1.657575]
[1742430043913,0.0003396,87299.0,87298.0,1.77715003]
[1742430044151,0.0003396,87299.0,87298.0,1.78315003]
[1742430044322,0.0003396,87299.0,87298.0,1.77169503]
[1742430044659,0.0003396,87299.0,87298.0,1.95497503]
[1742430045273,0.0003396,87299.0,87298.0,1.96643003]
[1742430046132,0.0003396,87299.0,87298.0,1.95497503]
[1742430046964,0.0003396,87299.0,87298.0,1.96643003]
[1742430047570,0.0003396,87299.0,87298.0,1.95497503]
[1742430048155,0.0003396,87299.0,87298.0,1.77169503]
[1742430048575,0.0003396,87299.0,87298.0,1.512]
[1742430048781,0.23075924,87299.0,87298.0,1.512]
[1742430048989,0.23075924,87299.0,87298.0,1.65188]
[1742430049607,0.23075924,87299.0,87298.0,1.64588]
[1742430049798,0.23075924,87299.0,87298.0,1.6460498]
[1742430050005,0.23075924,87299.0,87298.0,1.75962483]
[1742430050156,0.23075924,87299.0,87298.0,1.76362483]
[1742430050979,0.23075924,87299.0,87298.0,1.76762483]
[1742430051826,0.23075924,87299.0,87298.0,1.5081698]
[1742430052788,0.03602724,87299.0,87298.0,1.5081698]
[1742430053025,0.0003396,87299.0,87298.0,1.7029048]
[1742430053677,0.0003396,87299.0,87298.0,1.6914498]
[1742430053880,0.0003396,87299.0,87298.0,1.81102483]
[1742430054672,0.0003396,87299.0,87298.0,1.82247983]
[1742430054840,0.0003396,87299.0,87298.0,1.86927983]
[1742430055597,0.0003396,87299.0,87298.0,1.85782483]
[1742430055745,0.0003396,87299.0,87298.0,1.86927983]
[1742430056207,0.0003396,87299.0,87298.0,1.88382068]
[1742430057509,0.0003396,87299.0,87298.0,1.87582068]
[1742430057672,0.0003396,87299.0,87298.0,1.86936568]
[1742430058091,0.0117936,87299.0,87298.0,1.76354483]
[1742430058295,0.0003396,87299.0,87298.0,1.76354483]
[1742430058500,0.0003396,87299.0,87298.0,1.76854483]
[1742430059284,0.0003396,87299.0,87298.0,1.95182483]
[1742430059495,0.0003396,87299.0,87298.0,1.96327983]
[1742430059992,0.0003396,87299.0,87298.0,1.6489698]
[1742430060185,0.1950716,87299.0,87298.0,1.5101698]
[1742430060477,0.1950716,87299.0,87298.0,1.6487298]
[1742430060776,0.1950716,87299.0,87298.0,1.6486498]
[1742430060982,0.23075924,87299.0,87298.0,1.5101698]
[1742430061565,0.23075924,87299.0,87298.0,0.0101698]
[1742430062063,0.23075924,87299.0,87298.0,0.0051698]
[1742430062265,0.23075924,87299.0,87298.0,0.0081698]
[1742430062468,0.23075924,87299.0,87298.0,1.5081698]
[1742430063038,0.23075924,87299.0,87298.0,1.5031698]
[1742430063237,0.23075924,87299.0,87298.0,1.62274483]
[1742430063520,0.23075924,87299.0,87298.0,1.62674483]
[1742430063855,0.23075924,87299.0,87298.0,1.5071698]
[1742430064451,0.03602724,87299.0,87298.0,1.5001698]
[1742430064921,0.04748124,87299.0,87298.0,1.5001698]
[1742430066490,0.0484813,87299.0,87298.0,1.5001698]
[1742430067099,0.1302813,87299.0,87298.0,1.5001698]
[1742430068140,0.011456,87287.0,87286.0,0.0001698]
[1742430068318,0.23223411,87287.0,87286.0,0.0001698]
[1742430068537,0.23123405,87287.0,87286.0,0.0001698]
[1742430071863,0.23223405,87287.0,87286.0,0.0001698]
[1742430072426,0.23123405,87287.0,87286.0,0.0001698]
[1742430072771,0.23223405,87287.0,87286.0,0.0001698]
[1742430074629,0.23223405,87287.0,87275.0,1.50012523]
[1742430074630,0.194783,87276.0,87275.0,1.50012523]
[1742430074829,0.23198002,87276.0,87275.0,1.4971071]
[1742430075851,0.23298002,87276.0,87275.0,1.4971071]
[1742430076259,0.04881868,87276.0,87275.0,1.4971071]
[1742430076462,0.04981868,87276.0,87275.0,1.61668213]
[1742430077021,0.05081868,87276.0,87275.0,1.61668213]
[1742430077228,0.04981868,87276.0,87275.0,1.61668213]
[1742430077438,0.06127568,87276.0,87275.0,1.61668213]
[1742430077862,0.06127568,87276.0,87275.0,1.4971071]
[1742430078065,0.04981868,87276.0,87275.0,1.4971071]
[1742430078266,0.04881868,87276.0,87275.0,1.4971071]
[1742430078462,0.01162166,87276.0,87275.0,1.4971071]
[1742430078723,0.2732829,87285.0,87276.0,0.183326]
[1742430078875,0.03686883,87284.0,87283.0,0.183309]
[1742430079075,0.03686883,87284.0,87281.0,0.183314]
[1742430079498,0.03686883,87284.0,87277.0,0.11957503]
[1742430079704,0.011457,87277.0,87275.0,0.14072]
[1742430079878,0.2319472,87276.0,87275.0,0.14072]
[1742430080082,0.2319472,87276.0,87275.0,1.63772]
[1742430080727,0.2319472,87276.0,87275.0,1.5]
[1742430081659,0.2319472,87276.0,87275.0,1.503]
[1742430082584,0.2319472,87276.0,87275.0,1.506]
[1742430083109,0.2319472,87276.0,87275.0,1.503]
[1742430083311,0.2319472,87276.0,87275.0,1.506]
[1742430085135,0.2319472,87276.0,87275.0,1.503]
[1742430085336,0.0371642,87276.0,87275.0,1.503]
[1742430085450,0.0371642,87276.0,87275.0,1.5031699]
[1742430085651,0.048961,87276.0,87275.0,1.5031699]
[1742430085895,0.048961,87276.0,87275.0,1.62274493]
[1742430086104,0.048961,87276.0,87275.0,1.61974493]
[1742430086306,0.048961,87276.0,87275.0,1.62074493]
[1742430086872,0.048961,87276.0,87275.0,1.5001699]
[1742430087083,0.048961,87276.0,87275.0,1.5011699]
[1742430088076,0.04996106,87276.0,87275.0,1.5011699]
[1742430088841,0.048961,87276.0,87275.0,1.5011699]
[1742430094091,0.04996106,87276.0,87275.0,1.5011699]
[1742430097468,0.08572891,87276.0,87275.0,1.5011699]
[1742430097871,0.09453701,87276.0,87275.0,1.5011699]
[1742430098317,0.05876916,87276.0,87275.0,0.0011699]
[1742430098471,0.09654283,87276.0,87275.0,0.0011699]
[1742430098673,0.39654283,87276.0,87275.0,0.0001699]
[1742430098879,0.39554277,87276.0,87275.0,0.0001699]
[1742430099089,0.194816,87261.0,87245.0,0.0493]
[1742430099282,0.194816,87261.0,87241.0,0.0759698]
[1742430099283,0.194839,87251.0,87250.0,0.00152606]
[1742430099494,0.27045129,87251.0,87250.0,0.00152606]
[1742430099693,0.26945123,87251.0,87250.0,0.00152606]
[1742430099908,0.61495123,87251.0,87250.0,0.00152606]
[1742430100727,0.61495123,87251.0,87250.0,0.00252606]
[1742430101924,0.61695123,87251.0,87250.0,0.00152606]
[1742430102162,0.61795123,87251.0,87250.0,0.00152606]
[1742430102587,0.62643701,87251.0,87250.0,0.00152606]
[1742430103402,0.62643701,87251.0,87250.0,6e-08]
[1742430103913,0.70423701,87251.0,87250.0,6e-08]
[1742430104906,0.494859,87242.0,87241.0,2e-08]
[1742430105130,0.53399313,87242.0,87241.0,2e-08]
[1742430106302,0.194884,87231.0,87230.0,1.49986992]
[1742430106504,0.23503646,87231.0,87230.0,1.61944495]
[1742430106709,0.23503646,87231.0,87230.0,1.49986992]
[1742430107201,0.04015246,87231.0,87230.0,1.49986992]
[1742430107601,0.05161546,87231.0,87230.0,1.49986992]
[1742430107941,0.06311037,87231.0,87230.0,1.49986992]
[1742430108557,0.06311037,87231.0,87230.0,1.50086992]
[1742430108769,0.06411043,87231.0,87230.0,1.50186992]
[1742430108965,0.06411043,87231.0,87230.0,1.50086992]
[1742430109166,0.06311037,87231.0,87230.0,1.50086992]
[1742430109431,0.06411043,87231.0,87230.0,1.50186992]
[1742430109600,0.06411043,87231.0,87230.0,1.50203992]
[1742430109805,0.06345037,87231.0,87230.0,1.50203992]
[1742430111567,0.49005037,87231.0,87230.0,1e-06]
[1742430111767,0.194913,87218.0,87217.0,0.0001698]
[1742430111971,0.04100682,87218.0,87217.0,0.0001698]
[1742430112168,0.05247182,87218.0,87217.0,0.0001698]
[1742430112372,0.05347188,87218.0,87217.0,0.0001698]
[1742430112588,0.05347188,87218.0,87217.0,1.5001698]
[1742430112784,0.05247182,87218.0,87217.0,1.61974483]
[1742430112982,0.05259682,87218.0,87217.0,1.61974483]
[1742430113265,0.05259682,87218.0,87217.0,1.5001698]
[1742430114864,0.05359688,87218.0,87217.0,1.5001698]
[1742430115051,0.05259682,87218.0,87217.0,1.5001698]
[1742430116148,0.35259682,87218.0,87217.0,1.5001698]
[1742430116341,0.011466,87212.0,87211.0,0.0004]
[1742430116543,0.23732729,87212.0,87211.0,0.0004]
[1742430116718,0.53632723,87212.0,87211.0,0.0004]
[1742430118687,0.53832723,87212.0,87211.0,0.0004]
[1742430119079,0.53932723,87212.0,87211.0,0.0004]
[1742430119284,0.53936723,87212.0,87211.0,0.0004]
[1742430119486,0.38088363,87211.0,87210.0,8e-07]
[1742430119721,0.38088363,87211.0,87194.0,0.0179675]
[1742430119722,0.194956,87199.0,87194.0,0.0179675]
[1742430120026,0.23821202,87199.0,87194.0,0.0179675]
[1742430120174,0.23821202,87199.0,87195.0,0.183494]
[1742430120175,0.04225596,87199.0,87195.0,0.183494]
[1742430120377,0.194933,87209.0,87199.0,0.0821]
[1742430120581,0.194933,87209.0,87198.0,1.52033293]
[1742430120582,0.04289437,87208.0,87198.0,1.52033293]
[1742430120781,0.183471,87207.0,87199.0,0.0473]
[1742430121012,0.04196007,87206.0,87200.0,0.183486]
[1742430121223,0.003,87211.0,87209.0,0.183467]
[1742430121421,0.04149984,87210.0,87208.0,0.319867]
[1742430121594,0.04149984,87210.0,87208.0,0.1364]
[1742430122708,4e-05,87212.0,87209.0,0.183467]
[1742430123070,0.04150698,87212.0,87209.0,0.0794]
[1742430123234,0.194933,87209.0,87208.0,0.1384]
[1742430123435,0.04159845,87209.0,87208.0,0.1404]
[1742430123611,0.23653145,87209.0,87208.0,0.16038]
[1742430123811,0.23653145,87209.0,87208.0,0.1384]
[1742430124215,0.194953,87200.0,87198.0,0.02033293]
[1742430124420,0.2256762,87200.0,87198.0,0.02033293]
[1742430124627,0.011468,87199.0,87198.0,0.0001698]
[1742430124826,0.05372396,87199.0,87198.0,0.01560353]
[1742430125049,0.05372396,87199.0,87198.0,0.0001698]
[1742430126291,0.05372396,87199.0,87198.0,0.0041698]
[1742430127036,0.05472402,87199.0,87198.0,0.0041698]
[1742430127771,0.05472402,87199.0,87198.0,0.0031698]
[1742430127918,0.04225596,87199.0,87198.0,0.0031698]
[1742430128486,0.04225596,87199.0,87198.0,0.0001698]
[1742430128699,0.05372396,87199.0,87198.0,0.0001698]
[1742430128898,0.05372396,87199.0,87198.0,0.0011698]
[1742430129119,0.05372396,87199.0,87198.0,0.0001698]
[1742430129337,0.05372396,87199.0,87198.0,0.0011698]
[1742430129561,0.04225596,87199.0,87198.0,0.0011698]
[1742430129759,0.05372396,87199.0,87198.0,0.0011698]
[1742430130298,0.04225596,87199.0,87198.0,0.0011698]
[1742430130498,0.05472402,87199.0,87198.0,0.02143383]
[1742430130722,0.05372396,87199.0,87198.0,0.02143383]
[1742430131040,0.05472402,87199.0,87198.0,0.02143383]
[1742430131250,0.05472402,87199.0,87198.0,0.0011698]
[1742430131853,0.05372396,87199.0,87198.0,0.0011698]
[1742430132850,0.05472402,87199.0,87198.0,0.0011698]
[1742430134385,0.09045141,87199.0,87198.0,0.0011698]
[1742430134588,0.05372396,87199.0,87198.0,0.0011698]
[1742430134803,0.05672396,87199.0,87198.0,0.0011698]
[1742430135011,0.05672396,87199.0,87198.0,0.0001698]
[1742430135481,0.05572396,87199.0,87198.0,0.0001698]
[1742430135904,0.05372396,87199.0,87198.0,0.0001698]
[1742430136058,0.05572396,87199.0,87198.0,0.0001698]
[1742430136277,0.05372396,87199.0,87198.0,0.0001698]
[1742430136509,0.05372396,87199.0,87198.0,0.11974483]
[1742430136510,0.04225596,87199.0,87198.0,0.11974483]
[1742430136707,0.05672396,87199.0,87198.0,0.0001698]
[1742430136934,0.05772402,87199.0,87198.0,0.0001698]
[1742430137345,0.05572402,87199.0,87198.0,0.0001698]
[1742430137537,0.09145259,87199.0,87198.0,0.0001698]
[1742430137745,0.09245259,87199.0,87198.0,0.0001698]
[1742430138113,0.09145259,87199.0,87198.0,0.0001698]
[1742430138313,0.011469,87188.0,87187.0,0.0968099]
[1742430138515,0.23795941,87188.0,87187.0,0.01103398]
[1742430138791,0.194984,87186.0,87185.0,0.0131299]
[1742430139003,0.23809495,87186.0,87185.0,0.0131299]
[1742430139575,0.24978855,87186.0,87185.0,0.0131299]
[1742430139753,0.05480455,87186.0,87185.0,0.0131299]
[1742430140155,0.05480455,87186.0,87185.0,0.0171299]
[1742430140318,0.05480455,87186.0,87185.0,0.03138289]
[1742430140522,0.05480455,87186.0,87185.0,1.53138289]
[1742430141211,0.06627355,87186.0,87185.0,1.53438289]
[1742430142093,0.17266055,87187.0,87185.0,1.53438289]
[1742430142323,0.17266055,87187.0,87185.0,1.53479623]
[1742430142528,4e-05,87186.0,87185.0,0.03479623]
[1742430142732,4e-05,87186.0,87185.0,0.21831323]
[1742430142909,4e-05,87186.0,87185.0,1.71831323]
[1742430143142,4e-05,87186.0,87185.0,1.53479623]
[1742430143342,4e-05,87186.0,87185.0,1.53169623]
[1742430143702,4e-05,87186.0,87185.0,1.53469623]
[1742430144076,4e-05,87186.0,87185.0,1.53169623]
[1742430144667,4e-05,87186.0,87185.0,1.53486603]
[1742430145682,0.011509,87186.0,87185.0,1.53486603]
[1742430145875,0.011509,87186.0,87185.0,1.52061304]
[1742430146769,4e-05,87186.0,87185.0,1.52061304]
[1742430148324,0.183555,87186.0,87185.0,1.52061304]
[1742430148544,0.011509,87186.0,87185.0,1.52061304]
[1742430148759,4e-05,87186.0,87185.0,1.52061304]
[1742430148969,0.011509,87186.0,87185.0,1.64018807]
[1742430149365,4e-05,87186.0,87185.0,1.64018807]
[1742430150243,0.011509,87186.0,87185.0,1.64018807]
[1742430150571,4e-05,87186.0,87185.0,1.64018807]
[1742430151834,0.195024,87186.0,87185.0,1.64018807]
[1742430155291,4e-05,87186.0,87185.0,1.64018807]
[1742430156509,0.0003796,87186.0,87185.0,1.64018807]
[1742430158774,0.0118486,87186.0,87185.0,1.64018807]
[1742430159175,0.0118486,87186.0,87185.0,1.52061304]
[1742430159462,0.0118486,87186.0,87185.0,1.65697304]
[1742430161426,0.04771588,87186.0,87185.0,1.65697304]
[1742430161626,0.0118486,87186.0,87185.0,1.65697304]
[1742430162883,0.0003796,87186.0,87185.0,1.65697304]
[1742430163083,0.0003796,87186.0,87185.0,1.77654807]
[1742430163252,0.0118486,87186.0,87185.0,1.77654807]
[1742430164826,0.0118486,87186.0,87185.0,1.52061304]
[1742430165309,0.04772099,87186.0,87185.0,1.52061304]
[1742430165513,0.0003796,87186.0,87185.0,1.52061304]
[1742430169092,0.0118486,87186.0,87185.0,1.52061304]
[1742430169295,0.0118486,87186.0,87185.0,0.02061304]
[1742430169496,0.0003796,87186.0,87185.0,0.02061304]
[1742430169795,0.0003796,87186.0,87185.0,1.54106744]
[1742430171191,0.1953636,87186.0,87185.0,1.54106744]
[1742430171955,0.1953636,87186.0,87185.0,1.52061304]
[1742430173643,0.23123725,87186.0,87185.0,1.52061304]
[1742430173937,0.1953636,87186.0,87185.0,1.52061304]
[1742430174324,0.23123741,87186.0,87185.0,1.52061304]
[1742430174530,0.1953636,87186.0,87185.0,1.52061304]
[1742430174743,0.23123621,87186.0,87185.0,1.52061304]
[1742430174878,0.23123621,87186.0,87185.0,1.64018807]
[1742430175077,0.1953636,87186.0,87185.0,1.64018807]
[1742430175283,0.23123504,87186.0,87185.0,1.64018807]
[1742430175483,0.23123504,87186.0,87185.0,1.52061304]
[1742430176081,0.1953636,87186.0,87185.0,1.52061304]
[1742430176286,0.23123508,87186.0,87185.0,1.52061304]
[1742430178456,0.23123508,87186.0,87185.0,1.51371304]
[1742430178796,0.24023508,87186.0,87185.0,1.51371304]
[1742430179229,0.23523508,87186.0,87185.0,1.51371304]
[1742430180230,0.23123508,87186.0,87185.0,1.51371304]
[1742430180399,0.23123508,87186.0,87185.0,1.51471304]
[1742430180811,0.23123508,87186.0,87185.0,1.63428807]
[1742430181872,0.03625108,87186.0,87185.0,1.63428807]
[1742430182081,0.0118486,87186.0,87185.0,1.63428807]
[1742430182394,0.04770646,87186.0,87185.0,1.63428807]
[1742430183203,0.04770646,87186.0,87185.0,1.51471304]
[1742430183408,0.42770652,87186.0,87185.0,1.51471304]
[1742430183720,0.42670646,87186.0,87185.0,1.51471304]
[1742430184794,0.42670646,87186.0,87185.0,1.51371304]
[1742430185144,0.34770646,87186.0,87185.0,1.51371304]
[1742430185347,0.34970646,87186.0,87185.0,1.63328807]
[1742430185800,0.35070646,87186.0,87185.0,1.63328807]
[1742430186134,0.35070646,87186.0,87185.0,1.51371304]
[1742430186977,0.35070646,87186.0,87185.0,0.01371304]
[1742430187221,0.35918975,87186.0,87185.0,0.01371304]
[1742430187555,0.35918975,87186.0,87185.0,1.51371304]
[1742430188511,0.35070646,87186.0,87185.0,1.51371304]
[1742430189851,0.35928823,87186.0,87185.0,1.51371304]
[1742430190463,0.35928823,87186.0,87185.0,0.01371304]
[1742430190839,0.35928823,87186.0,87185.0,0.00358419]
[1742430191039,0.35928823,87186.0,87162.0,0.0001699]
[1742430191040,0.011472,87163.0,87162.0,9.991e-05]
[1742430191256,0.27193606,87163.0,87162.0,0.00018484]
[1742430191447,0.270936,87163.0,87162.0,0.00018484]
[1742430192053,0.570936,87163.0,87162.0,0.00018484]
[1742430192272,0.571936,87163.0,87162.0,0.00018484]
[1742430192430,0.58259879,87163.0,87162.0,0.00018484]
[1742430192636,0.58159879,87163.0,87162.0,0.00018484]
[1742430192860,0.58259879,87163.0,87162.0,0.00018484]
[1742430193270,0.58559879,87163.0,87162.0,0.00018484]
[1742430194098,0.58559879,87163.0,87162.0,8.4e-07]
[1742430194099,0.99419879,87163.0,87162.0,8.4e-07]
[1742430194923,0.195081,87143.0,87142.0,1e-06]
[1742430195123,1.04008106,87143.0,87142.0,1e-06]
[1742430195325,1.117381,87143.0,87142.0,1e-06]
[1742430196267,1.117381,87143.0,87131.0,0.10236946]
[1742430196268,0.195105,87132.0,87131.0,4.6e-07]
[1742430196550,0.57112,87138.0,87131.0,0.00012428]
[1742430196699,0.183623,87135.0,87131.0,0.00012428]
[1742430196904,0.011476,87132.0,87131.0,0.00012382]
[1742430197307,0.183629,87132.0,87131.0,0.00012382]
[1742430197509,0.195105,87132.0,87131.0,0.00012382]
[1742430197717,0.183629,87132.0,87131.0,0.00012382]
[1742430197920,0.195105,87132.0,87131.0,0.00012382]
[1742430198303,0.20965709,87132.0,87131.0,0.00012382]
[1742430198707,0.01455209,87132.0,87131.0,0.00012382]
[1742430198983,0.2732829,87150.0,87136.0,0.091076]
[1742430199206,0.2732829,87146.0,87137.0,0.02402635]
[1742430199424,0.195092,87138.0,87137.0,0.02402635]
[1742430200739,0.011476,87138.0,87137.0,1.52402635]
[1742430201080,0.195087,87140.0,87137.0,1.52402635]
[1742430201281,0.195092,87138.0,87137.0,1.52402635]
[1742430201689,0.195092,87138.0,87137.0,1.5]
[1742430203038,0.19609206,87138.0,87137.0,1.5]
[1742430203489,0.19609206,87138.0,87137.0,1.502]
[1742430203704,0.19609206,87138.0,87137.0,0.002]
[1742430206677,0.195105,87132.0,87131.0,0.00029372]
[1742430206880,0.19610506,87132.0,87131.0,0.00029372]
[1742430207443,0.49610506,87132.0,87131.0,0.00029372]
[1742430207645,0.573705,87132.0,87131.0,0.00029372]
[1742430208063,0.19511,87130.0,87129.0,7.2e-07]
[1742430208210,0.19611006,87130.0,87129.0,7.2e-07]
[1742430208829,0.00100006,87130.0,87129.0,7.2e-07]
[1742430209031,0.011477,87130.0,87129.0,7.2e-07]
[1742430209229,0.01247706,87130.0,87129.0,7.2e-07]
[1742430209435,0.1839498,87142.0,87131.0,0.183629]
[1742430209608,0.0118148,87142.0,87132.0,0.20198997]
[1742430209973,0.195103,87133.0,87132.0,0.01736297]
[1742430210109,0.195103,87133.0,87129.0,7.2e-07]
[1742430210110,0.011476,87136.0,87129.0,7.2e-07]
[1742430210312,0.19511,87130.0,87129.0,7.2e-07]
[1742430210517,0.19511,87130.0,87129.0,0.00100072]
[1742430210736,0.19511,87130.0,87129.0,7.2e-07]
[1742430210954,0.19511,87130.0,87129.0,1.50000072]
[1742430211115,0.19511,87130.0,87129.0,1.61957575]
[1742430211733,0.19511,87130.0,87129.0,1.50000072]
[1742430212856,0.19511,87130.0,87129.0,1.50200072]
[1742430213288,0.19511,87130.0,87129.0,0.00200072]
[1742430213712,0.19611006,87130.0,87129.0,0.00200072]
[1742430214697,0.49611006,87130.0,87129.0,0.00200072]
[1742430214953,0.49511,87130.0,87129.0,0.00200072]
[1742430215527,0.57401,87130.0,87129.0,0.00200072]
[1742430216180,0.57801,87130.0,87129.0,7.2e-07]
[1742430216551,0.58101,87130.0,87129.0,7.2e-07]
[1742430217157,0.50211,87130.0,87129.0,7.2e-07]
[1742430217943,0.49811,87130.0,87129.0,7.2e-07]
[1742430218413,0.50211,87130.0,87129.0,7.2e-07]
[1742430218649,0.495123,87124.0,87123.0,0.00013052]
[1742430220019,0.195152,87111.0,87095.0,0.0495]
[1742430220191,0.19615206,87111.0,87095.0,0.0495]
[1742430220394,0.195152,87111.0,87095.0,0.0495]
[1742430220608,0.195152,87111.0,87108.0,1.5]
[1742430221812,0.195152,87111.0,87110.0,0.11974483]
[1742430222641,0.001,87111.0,87110.0,0.11974483]
[1742430222822,0.011479,87112.0,87110.0,0.11974483]
[1742430223023,0.011479,87111.0,87110.0,0.11974483]
[1742430223205,0.011479,87111.0,87110.0,0.0001698]
[1742430223430,0.011479,87111.0,87110.0,1.5001698]
[1742430224912,0.195145,87115.0,87110.0,1.5001698]
[1742430225112,0.011479,87114.0,87110.0,1.5001698]
[1742430225252,0.195145,87115.0,87110.0,0.0001698]
[1742430225471,0.195148,87114.0,87111.0,0.02633538]
[1742430225680,0.13564,87129.0,87110.0,0.0001698]
[1742430225681,0.2732829,87120.0,87110.0,0.0001698]
[1742430225888,0.2732829,87120.0,87113.0,0.183669]
[1742430226106,0.2732829,87120.0,87115.0,0.183664]
[1742430226319,0.2732829,87120.0,87113.0,0.183669]
[1742430226526,0.183658,87118.0,87114.0,0.02323388]
[1742430226797,0.011478,87123.0,87111.0,0.0485]
[1742430226798,0.195118,87127.0,87117.0,0.183661]
[1742430227042,0.183641,87127.0,87119.0,0.183656]
[1742430227240,0.19513,87122.0,87120.0,0.03684618]
[1742430227420,0.183654,87120.0,87118.0,0.0831]
[1742430227625,0.183671,87112.0,87111.0,0.0485]
[1742430227917,0.183669,87114.0,87111.0,0.0485]
[1742430228122,0.011479,87112.0,87111.0,0.0485]
[1742430228353,0.195152,87111.0,87110.0,0.0001698]
[1742430228559,0.011479,87112.0,87110.0,0.0001698]
[1742430228731,0.195152,87112.0,87110.0,0.0001698]
[1742430228947,0.011479,87111.0,87110.0,0.0001698]
[1742430229151,0.195152,87112.0,87110.0,0.0001698]
[1742430229152,0.183669,87113.0,87110.0,5.827e-05]
[1742430229359,0.011479,87111.0,87110.0,5.827e-05]
[1742430229540,0.011479,87111.0,87110.0,0.00305827]
[1742430229954,0.011479,87111.0,87110.0,5.827e-05]
[1742430230375,0.011479,87111.0,87110.0,0.00205827]
[1742430230550,0.011479,87111.0,87110.0,5.827e-05]
[1742430231160,0.012479,87111.0,87110.0,5.827e-05]
[1742430235130,0.001,87111.0,87110.0,5.827e-05]
[1742430235333,0.012479,87111.0,87110.0,0.0184321]
[1742430235539,0.012479,87111.0,87110.0,1.50005827]
[1742430236316,0.011479,87111.0,87110.0,1.50005827]
[1742430236994,0.011479,87111.0,87110.0,1.50105827]
[1742430237201,0.011479,87111.0,87110.0,1.50205827]
[1742430238718,0.2732829,87120.0,87110.0,1.50205827]
[1742430238926,0.011478,87119.0,87111.0,0.11957503]
[1742430239238,0.18366,87118.0,87111.0,0.11957503]
[1742430239452,0.011479,87111.0,87110.0,1.50205827]
[1742430239647,0.195152,87111.0,87110.0,1.50205827]
[1742430239889,0.195152,87111.0,87110.0,1.50005827]
[1742430240941,0.195152,87111.0,87110.0,1.50105827]
[1742430241166,0.195152,87111.0,87110.0,1.50205827]
[1742430241797,0.23099495,87111.0,87110.0,1.50205827]
[1742430242717,0.23099495,87111.0,87110.0,1.6216333]
[1742430242907,0.23099495,87111.0,87110.0,1.50205827]
[1742430244259,0.23099495,87111.0,87110.0,1.50005827]
[1742430244615,0.23099495,87111.0,87110.0,5.827e-05]
[1742430244616,0.23199495,87111.0,87110.0,5.827e-05]
[1742430245081,0.03684295,87111.0,87110.0,5.827e-05]
[1742430245217,0.012479,87111.0,87110.0,1.50005827]
[1742430245400,0.012479,87111.0,87110.0,1.6196333]
[1742430245602,0.001,87111.0,87110.0,1.6311123]
[1742430245810,0.001,87111.0,87110.0,1.6196333]
[1742430246023,0.195134,87120.0,87111.0,0.183673]
[1742430246217,0.011478,87120.0,87112.0,0.4283711]
[1742430246486,0.1954718,87121.0,87112.0,0.2447021]
[1742430246815,0.1954718,87121.0,87113.0,0.183667]
[1742430246942,0.1954718,87121.0,87117.0,0.18366]
[1742430246943,0.0003398,87121.0,87117.0,0.18366]
[1742430247145,0.0003398,87121.0,87114.0,0.00114775]
[1742430247370,0.0003398,87121.0,87115.0,0.04809771]
[1742430247371,0.183654,87120.0,87115.0,0.04809771]
[1742430247569,0.0003398,87121.0,87119.0,1.5]
[1742430247775,0.011478,87120.0,87119.0,1.5]
[1742430248211,0.011478,87120.0,87060.0,0.00022]
[1742430248212,0.011481,87098.0,87060.0,0.00022]
[1742430248424,0.195233,87075.0,87061.0,0.00154811]
[1742430248652,0.195233,87075.0,87061.0,0.0004]
[1742430248852,0.2091338,87075.0,87074.0,7e-07]
[1742430249063,0.55353087,87075.0,87074.0,7e-07]
[1742430249268,0.495275,87056.0,87055.0,0.3973807]
[1742430249411,0.495275,87056.0,87050.0,7e-05]
[1742430249412,0.195287,87051.0,87050.0,7e-05]
[1742430249644,0.011487,87050.0,87049.0,8e-07]
[1742430249857,0.01248706,87050.0,87049.0,7e-07]
[1742430250065,0.04828671,87050.0,87049.0,7e-07]